[Event "GER-ch Blitz 2019"]
[Site "Magdeburg"]
[Date "2019.05.25"]
[Round "11.15"]
[White "Hirneise, Jens"]
[Black "Stern, Rene"]
[Result "1/2-1/2"]
[ECO "C65"]
[WhiteElo "2375"]
[BlackElo "2538"]
[Annotator "ChessBase"]
[PlyCount "137"]
[EventDate "2019.05.25"]
[EventType "tourn"]
[EventCountry "GER"]
[Tiebreak "Number of wins+Number of black wins"]
[SourceTitle "playchess.com"]
[Source "ChessBase"]
[SourceQuality "1"]
[TimeControl "180+2"]

1. e4 {[%emt 0:00:00]} e5 {[%emt 0:00:00]} 2. Nf3 {[%emt 0:00:00]} Nc6 {
[%emt 0:00:00]} 3. Bb5 {[%emt 0:00:00]} Nf6 {[%emt 0:00:01]} 4. d4 {[%emt 0:00:
01]} exd4 {[%emt 0:00:04]} 5. e5 {[%emt 0:00:02]} Ne4 {[%emt 0:00:02]} 6. Qe2 {
[%emt 0:00:01]} Nc5 {[%emt 0:00:04]} 7. O-O {[%emt 0:00:06]} Be7 {[%emt 0:00:
01]} 8. Rd1 {[%emt 0:00:02]} d3 {[%emt 0:00:08]} 9. cxd3 {[%emt 0:00:16]} a6 {
[%emt 0:00:01]} 10. Bc4 {[%emt 0:00:15]} b5 {[%emt 0:00:01]} 11. Bd5 {[%emt 0:
00:06]} Bb7 {[%emt 0:00:03]} 12. d4 {[%emt 0:00:06]} Na4 {[%emt 0:00:16]} 13.
Be4 {[%emt 0:00:16]} d5 {[%emt 0:00:12]} 14. exd6 {[%emt 0:00:23]} Qxd6 {
[%emt 0:00:01]} 15. Nc3 {[%emt 0:00:11]} Nxc3 {[%emt 0:00:05]} 16. bxc3 {
[%emt 0:00:01]} O-O {[%emt 0:00:04]} 17. a4 {[%emt 0:00:10]} Rae8 {[%emt 0:00:
59]} 18. Qc2 {[%emt 0:00:28]} h6 {[%emt 0:00:11]} 19. axb5 {[%emt 0:00:06]}
axb5 {[%emt 0:00:00]} 20. Ba3 {[%emt 0:00:36]} Qd7 {[%emt 0:00:32]} 21. Bxe7
Rxe7 {[%emt 0:00:01]} 22. Rab1 {[%emt 0:00:23]} Nd8 {[%emt 0:00:18]} 23. Bxb7 {
[%emt 0:00:07]} Nxb7 {[%emt 0:00:01]} 24. Ne5 {[%emt 0:00:02]} Qd5 {[%emt 0:00:
07]} 25. Qb3 {[%emt 0:00:03]} Qxb3 {[%emt 0:00:02]} 26. Rxb3 {[%emt 0:00:01]}
Nd6 {[%emt 0:00:00]} 27. g3 {[%emt 0:00:05]} Ra8 {[%emt 0:00:04]} 28. Kg2 {
[%emt 0:00:02]} Ra2 {[%emt 0:00:04]} 29. Re1 {[%emt 0:00:05]} c6 {[%emt 0:00:
14]} 30. Rbb1 {[%emt 0:00:03]} Rc7 {[%emt 0:00:07]} 31. Ra1 {[%emt 0:00:00]}
Rxa1 {[%emt 0:00:04]} 32. Rxa1 {[%emt 0:00:01]} f6 {[%emt 0:00:02]} 33. Nd3 {
[%emt 0:00:01]} Ne4 {[%emt 0:00:01]} 34. Ra3 {[%emt 0:00:02]} Re7 {[%emt 0:00:
05]} 35. Nb4 {[%emt 0:00:01]} Re6 {[%emt 0:00:01]} 36. Ra6 {[%emt 0:00:05]}
Nxc3 {[%emt 0:00:02]} 37. d5 {[%emt 0:00:01]} Re8 {[%emt 0:00:07]} 38. dxc6 {
[%emt 0:00:02]} Rc8 {[%emt 0:00:02]} 39. Rb6 {[%emt 0:00:03]} Kf7 {[%emt 0:00:
02]} 40. Rb7+ {[%emt 0:00:02]} Ke6 {[%emt 0:00:03]} 41. Rxg7 {[%emt 0:00:02]}
Nd5 {[%emt 0:00:00]} 42. Nd3 {[%emt 0:00:04]} Rxc6 {[%emt 0:00:03]} 43. Rb7 {
[%emt 0:00:01]} Rc3 {[%emt 0:00:04]} 44. Nf4+ {[%emt 0:00:03]} Nxf4+ 45. gxf4
Rc5 {[%emt 0:00:03]} 46. Kg3 {[%emt 0:00:01]} h5 {[%emt 0:00:00]} 47. h4 {
[%emt 0:00:03]} Kd5 {[%emt 0:00:02]} 48. Rb6 {[%emt 0:00:02]} f5 {[%emt 0:00:
01]} 49. Rh6 {[%emt 0:00:02]} b4 {[%emt 0:00:00]} 50. Rb6 {[%emt 0:00:01]} Kc4
{[%emt 0:00:01]} 51. Kf3 {[%emt 0:00:00]} Rb5 {[%emt 0:00:01]} 52. Rc6+ {
[%emt 0:00:01]} Kd3 {[%emt 0:00:01]} 53. Rd6+ {[%emt 0:00:01]} Kc2 {[%emt 0:00:
01]} 54. Rc6+ {[%emt 0:00:02]} Kd2 {[%emt 0:00:01]} 55. Rd6+ {[%emt 0:00:02]}
Kc3 {[%emt 0:00:02]} 56. Ke3 {[%emt 0:00:02]} b3 {[%emt 0:00:01]} 57. Rc6+ {
[%emt 0:00:01]} Kb4 {[%emt 0:00:01]} 58. Kd2 {[%emt 0:00:01]} b2 {[%emt 0:00:
04]} 59. Kc2 {[%emt 0:00:02]} Rc5+ {[%emt 0:00:00]} 60. Rxc5 {[%emt 0:00:01]}
Kxc5 {[%emt 0:00:01]} 61. Kxb2 {[%emt 0:00:02]} Kd4 {[%emt 0:00:00]} 62. Kc2 {
[%emt 0:00:01]} Ke4 {[%emt 0:00:01]} 63. Kd2 {[%emt 0:00:00]} Kxf4 {[%emt 0:00:
03]} 64. Ke2 {[%emt 0:00:02]} Kg4 {[%emt 0:00:01]} 65. Ke3 {[%emt 0:00:00]}
Kxh4 {[%emt 0:00:16]} 66. Kf4 {[%emt 0:00:01]} Kh3 {[%emt 0:00:00]} 67. Kxf5 {
[%emt 0:00:06]} Kg2 {[%emt 0:00:02]} 68. Kg5 {[%emt 0:00:01]} Kxf2 {[%emt 0:00:
01]} 69. Kxh5 {[%emt 0:00:01]} 1/2-1/2

[Event "GER-ch Blitz 2019"]
[Site "Magdeburg"]
[Date "2019.05.25"]
[Round "12.1"]
[White "Baskin, Robert"]
[Black "Gustafsson, Jan"]
[Result "0-1"]
[ECO "A45"]
[WhiteElo "2398"]
[BlackElo "2639"]
[Annotator "ChessBase"]
[PlyCount "76"]
[EventDate "2019.05.25"]
[EventType "tourn"]
[EventCountry "GER"]
[Tiebreak "Number of wins+Number of black wins"]
[SourceTitle "playchess.com"]
[Source "ChessBase"]
[SourceQuality "1"]
[TimeControl "180+2"]

1. d4 {[%emt 0:00:00]} Nf6 {[%emt 0:00:00]} 2. Bf4 {[%emt 0:00:01]} d5 {
[%emt 0:00:01]} 3. e3 {[%emt 0:00:02]} c5 {[%emt 0:00:01]} 4. c3 {[%emt 0:00:
01]} Nc6 {[%emt 0:00:01]} 5. Nd2 {[%emt 0:00:01]} e6 {[%emt 0:00:01]} 6. Ngf3 {
[%emt 0:00:01]} cxd4 {[%emt 0:00:02]} 7. exd4 {[%emt 0:00:02]} Nh5 {[%emt 0:00:
02]} 8. Be3 {[%emt 0:00:01]} Bd6 {[%emt 0:00:02]} 9. Ne5 {[%emt 0:00:03]} g6 {
[%emt 0:00:03]} 10. g4 {[%emt 0:00:02]} Ng7 {[%emt 0:00:08]} 11. h4 {[%emt 0:
00:03]} h5 {[%emt 0:00:08]} 12. Bg5 {[%emt 0:00:05]} Be7 {[%emt 0:00:16]} 13.
Bxe7 {[%emt 0:00:20]} Qxe7 {[%emt 0:00:01]} 14. Bb5 {[%emt 0:00:20]} O-O {
[%emt 0:00:03]} 15. Bxc6 {[%emt 0:00:09]} bxc6 {[%emt 0:00:02]} 16. gxh5 {
[%emt 0:00:13]} Nxh5 {[%emt 0:00:04]} 17. Qg4 {[%emt 0:00:05]} Qf6 {[%emt 0:00:
11]} 18. Rg1 {[%emt 0:00:19]} Kh8 {[%emt 0:00:29]} 19. Ndf3 {[%emt 0:00:07]}
Qf4 {[%emt 0:00:18]} 20. Qxf4 {[%emt 0:00:45]} Nxf4 {[%emt 0:00:01]} 21. Rg4 {
[%emt 0:00:02]} Nh5 {[%emt 0:00:08]} 22. Ng5 {[%emt 0:00:09]} Kg7 {[%emt 0:00:
03]} 23. Ngxf7 {[%emt 0:00:39]} Rxf7 {[%emt 0:00:02]} 24. Rxg6+ {[%emt 0:00:06]
} Kh7 {[%emt 0:00:03]} 25. Rg5 {[%emt 0:00:04]} Rf5 {[%emt 0:00:02]} 26. Rxf5 {
[%emt 0:00:01]} exf5 {[%emt 0:00:02]} 27. Nxc6 {[%emt 0:00:02]} Ba6 {[%emt 0:
00:33]} 28. O-O-O {[%emt 0:00:01]} Nf4 {[%emt 0:00:03]} 29. Nb4 {[%emt 0:00:03]
} Be2 {[%emt 0:00:07]} 30. Rg1 {[%emt 0:00:02]} a5 {[%emt 0:00:05]} 31. Nc6 {
[%emt 0:00:01]} Bb5 {[%emt 0:00:07]} 32. Rg5 {[%emt 0:00:07]} Bxc6 {[%emt 0:00:
03]} 33. Rxf5 {[%emt 0:00:01]} Ne6 {[%emt 0:00:17]} 34. Rf6 {[%emt 0:00:02]}
Re8 {[%emt 0:00:03]} 35. f4 Kg7 {[%emt 0:00:03]} 36. Rf5 {[%emt 0:00:02]} Rf8 {
[%emt 0:00:02]} 37. Re5 {[%emt 0:00:03]} Nxf4 {[%emt 0:00:01]} 38. Re7+ {
[%emt 0:00:01]} Rf7 {[%emt 0:00:01]} 0-1

[Event "GER-ch Blitz 2019"]
[Site "Magdeburg"]
[Date "2019.05.25"]
[Round "12.2"]
[White "Koch, Thomas"]
[Black "Buhmann, Rainer"]
[Result "0-1"]
[ECO "E11"]
[WhiteElo "2474"]
[BlackElo "2573"]
[Annotator "ChessBase"]
[PlyCount "150"]
[EventDate "2019.05.25"]
[EventType "tourn"]
[EventCountry "GER"]
[Tiebreak "Number of wins+Number of black wins"]
[SourceTitle "playchess.com"]
[Source "ChessBase"]
[SourceQuality "1"]
[TimeControl "180+2"]

1. d4 {[%emt 0:00:00]} Nf6 {[%emt 0:00:00]} 2. c4 {[%emt 0:00:00]} e6 {[%emt 0:
00:00]} 3. Nf3 {[%emt 0:00:00]} Bb4+ {[%emt 0:00:01]} 4. Bd2 {[%emt 0:00:01]}
Be7 {[%emt 0:00:01]} 5. g3 {[%emt 0:00:01]} a6 {[%emt 0:00:03]} 6. Bg2 {
[%emt 0:00:02]} b5 {[%emt 0:00:01]} 7. Ne5 {[%emt 0:00:19]} Ra7 {[%emt 0:00:15]
} 8. Nc3 {[%emt 0:00:19]} Bb7 {[%emt 0:00:13]} 9. Bxb7 {[%emt 0:00:13]} Rxb7 {
[%emt 0:00:01]} 10. c5 {[%emt 0:00:02]} d6 {[%emt 0:00:11]} 11. cxd6 {[%emt 0:
00:08]} cxd6 {[%emt 0:00:05]} 12. Nd3 {[%emt 0:00:01]} O-O {[%emt 0:00:12]} 13.
O-O {[%emt 0:00:02]} Nbd7 {[%emt 0:00:03]} 14. Bg5 {[%emt 0:00:30]} Nb6 {
[%emt 0:00:04]} 15. Bxf6 {[%emt 0:00:12]} Bxf6 {[%emt 0:00:02]} 16. e3 {
[%emt 0:00:01]} Qd7 {[%emt 0:00:12]} 17. Qf3 {[%emt 0:00:11]} Nc4 {[%emt 0:00:
05]} 18. Rfd1 {[%emt 0:00:05]} Rc8 {[%emt 0:00:09]} 19. h4 {[%emt 0:00:10]} Be7
{[%emt 0:00:09]} 20. Ne2 {[%emt 0:00:07]} Rbc7 {[%emt 0:00:06]} 21. Nef4 {
[%emt 0:00:02]} d5 {[%emt 0:00:13]} 22. Qg4 {[%emt 0:00:05]} g6 {[%emt 0:00:24]
} 23. h5 {[%emt 0:00:04]} Bd6 {[%emt 0:00:08]} 24. hxg6 {[%emt 0:00:10]} hxg6 {
[%emt 0:00:02]} 25. Kg2 {[%emt 0:00:02]} Bxf4 {[%emt 0:00:05]} 26. Qxf4 {
[%emt 0:00:17]} Qd6 {[%emt 0:00:02]} 27. Qh4 {[%emt 0:00:02]} Qe7 {[%emt 0:00:
02]} 28. Qh3 {[%emt 0:00:05]} Qf6 {[%emt 0:00:07]} 29. Rh1 {[%emt 0:00:18]} Kf8
{[%emt 0:00:15]} 30. Qh8+ {[%emt 0:00:01]} Qxh8 {[%emt 0:00:05]} 31. Rxh8+ {
[%emt 0:00:01]} Ke7 {[%emt 0:00:01]} 32. Rah1 {[%emt 0:00:03]} Nd6 {[%emt 0:00:
04]} 33. Nc5 {[%emt 0:00:04]} Ne4 {[%emt 0:00:07]} 34. Rxc8 {[%emt 0:00:13]}
Rxc8 35. Nxe4 {[%emt 0:00:02]} dxe4 {[%emt 0:00:02]} 36. Rh4 {[%emt 0:00:02]}
Rc2 {[%emt 0:00:01]} 37. Rxe4 {[%emt 0:00:03]} Rxb2 38. a4 b4 {[%emt 0:00:07]}
39. d5 {[%emt 0:00:01]} Kd6 {[%emt 0:00:04]} 40. dxe6 fxe6 {[%emt 0:00:01]} 41.
Kf3 {[%emt 0:00:08]} a5 {[%emt 0:00:01]} 42. Rd4+ {[%emt 0:00:03]} Kc5 {
[%emt 0:00:01]} 43. Re4 {[%emt 0:00:01]} Kd5 {[%emt 0:00:06]} 44. Rd4+ {
[%emt 0:00:00]} Ke5 {[%emt 0:00:02]} 45. Re4+ {[%emt 0:00:01]} Kf6 {[%emt 0:00:
01]} 46. Rf4+ {[%emt 0:00:03]} Ke7 {[%emt 0:00:01]} 47. Rg4 {[%emt 0:00:05]}
Ra2 {[%emt 0:00:02]} 48. Rxg6 {[%emt 0:00:04]} Rxa4 {[%emt 0:00:01]} 49. Rg7+ {
[%emt 0:00:06]} Kf6 {[%emt 0:00:00]} 50. Rb7 {[%emt 0:00:01]} Ra2 {[%emt 0:00:
12]} 51. g4 {[%emt 0:00:02]} Rb2 {[%emt 0:00:01]} 52. Ra7 {[%emt 0:00:01]} Ra2
{[%emt 0:00:01]} 53. Rb7 {[%emt 0:00:01]} Ra1 {[%emt 0:00:08]} 54. Ke4 {
[%emt 0:00:02]} Rb1 55. Ra7 Ra1 {[%emt 0:00:04]} 56. Rb7 {[%emt 0:00:01]} Ra4 {
[%emt 0:00:01]} 57. f4 {[%emt 0:00:04]} b3+ {[%emt 0:00:09]} 58. Kd3 {[%emt 0:
00:01]} Ra3 {[%emt 0:00:00]} 59. g5+ {[%emt 0:00:03]} Kg6 {[%emt 0:00:01]} 60.
Rb6 {[%emt 0:00:01]} b2+ {[%emt 0:00:03]} 61. Ke4 {[%emt 0:00:06]} Ra4+ {
[%emt 0:00:01]} 62. Kd3 {[%emt 0:00:02]} Ra3+ {[%emt 0:00:04]} 63. Kc2 {
[%emt 0:00:01]} Rxe3 {[%emt 0:00:01]} 64. Ra6 {[%emt 0:00:05]} Re2+ {[%emt 0:
00:02]} 65. Kb1 {[%emt 0:00:02]} Kf5 {[%emt 0:00:02]} 66. Rxa5+ Kxf4 67. g6 Rg2
{[%emt 0:00:04]} 68. g7 {[%emt 0:00:02]} Rxg7 {[%emt 0:00:02]} 69. Kxb2 Rc7 {
[%emt 0:00:03]} 70. Rh5 {[%emt 0:00:03]} e5 71. Rh4+ Kf3 {[%emt 0:00:02]} 72.
Rh3+ {[%emt 0:00:02]} Kg4 {[%emt 0:00:01]} 73. Rh1 {[%emt 0:00:01]} e4 {
[%emt 0:00:01]} 74. Rg1+ {[%emt 0:00:03]} Kf3 {[%emt 0:00:01]} 75. Rf1+ {
[%emt 0:00:00]} Ke2 {[%emt 0:00:02]} 0-1

[Event "GER-ch Blitz 2019"]
[Site "Magdeburg"]
[Date "2019.05.25"]
[Round "12.3"]
[White "Braeuer, Franz"]
[Black "Wichmann, Cliff"]
[Result "1/2-1/2"]
[ECO "C06"]
[WhiteElo "2445"]
[BlackElo "2280"]
[Annotator "NA"]
[PlyCount "23"]
[EventDate "2019.05.25"]
[EventType "tourn"]
[EventCountry "GER"]
[Tiebreak "Number of wins+Number of black wins"]
[SourceTitle "playchess.com"]
[Source "ChessBase"]
[SourceQuality "1"]
[TimeControl "180+2"]

1. e4 {[%emt 0:00:00]} e6 {[%emt 0:00:00]} 2. d4 {[%emt 0:00:00]} d5 {[%emt 0:
00:00]} 3. Nd2 {[%emt 0:00:00]} Nf6 {[%emt 0:00:00]} 4. e5 {[%emt 0:00:01]}
Nfd7 {[%emt 0:00:00]} 5. Bd3 {[%emt 0:00:00]} c5 6. c3 Nc6 {[%emt 0:00:02]} 7.
Ne2 {[%emt 0:00:01]} cxd4 {[%emt 0:00:00]} 8. cxd4 {[%emt 0:00:01]} f6 {
[%emt 0:00:02]} 9. exf6 {[%emt 0:00:01]} Nxf6 {[%emt 0:00:00]} 10. O-O {
[%emt 0:00:01]} Bd6 {[%emt 0:00:01]} 11. Nf3 {[%emt 0:00:02]} Qc7 {[%emt 0:00:
02]} 12. Nc3 {[%emt 0:00:04]} 1/2-1/2

[Event "GER-ch Blitz 2019"]
[Site "Magdeburg"]
[Date "2019.05.25"]
[Round "12.4"]
[White "Feuerstack, Aljoscha"]
[Black "Ehmann, Thilo"]
[Result "0-1"]
[ECO "B22"]
[WhiteElo "2441"]
[BlackElo "2291"]
[Annotator "NA"]
[PlyCount "90"]
[EventDate "2019.05.25"]
[EventType "tourn"]
[EventCountry "GER"]
[Tiebreak "Number of wins+Number of black wins"]
[SourceTitle "playchess.com"]
[Source "ChessBase"]
[SourceQuality "1"]
[TimeControl "180+2"]

1. e4 {[%emt 0:00:00]} c5 {[%emt 0:00:00]} 2. c3 {[%emt 0:00:00]} Nf6 {[%emt 0:
00:03]} 3. e5 {[%emt 0:00:01]} Nd5 {[%emt 0:00:00]} 4. Nf3 {[%emt 0:00:00]} e6
{[%emt 0:00:01]} 5. Bc4 {[%emt 0:00:01]} d6 {[%emt 0:00:05]} 6. d4 {[%emt 0:00:
03]} cxd4 {[%emt 0:00:02]} 7. cxd4 {[%emt 0:00:01]} Nc6 {[%emt 0:00:02]} 8. O-O
{[%emt 0:00:03]} Be7 {[%emt 0:00:04]} 9. exd6 {[%emt 0:00:03]} Qxd6 {[%emt 0:
00:03]} 10. Nc3 {[%emt 0:00:01]} O-O {[%emt 0:00:07]} 11. Re1 {[%emt 0:00:04]}
Qd8 {[%emt 0:00:31]} 12. a3 {[%emt 0:00:10]} b6 {[%emt 0:00:20]} 13. Qd3 {
[%emt 0:00:10]} Bb7 {[%emt 0:00:09]} 14. Nxd5 {[%emt 0:00:05]} exd5 {[%emt 0:
00:03]} 15. Bb3 {[%emt 0:00:09]} Bf6 {[%emt 0:00:12]} 16. Ne5 {[%emt 0:00:05]}
g6 {[%emt 0:00:16]} 17. Bf4 {[%emt 0:01:06]} Bg7 {[%emt 0:00:18]} 18. Rad1 {
[%emt 0:00:06]} Na5 {[%emt 0:00:20]} 19. Ba4 {[%emt 0:00:03]} Nc4 {[%emt 0:00:
05]} 20. Re2 {[%emt 0:00:20]} a6 {[%emt 0:00:37]} 21. Nc6 {[%emt 0:00:33]} Bxc6
22. Bxc6 {[%emt 0:00:01]} Ra7 {[%emt 0:00:03]} 23. Qf3 {[%emt 0:00:01]} Rd7 {
[%emt 0:00:06]} 24. Bxd7 Qxd7 {[%emt 0:00:00]} 25. h3 {[%emt 0:00:03]} a5 {
[%emt 0:00:02]} 26. Rde1 {[%emt 0:00:01]} a4 {[%emt 0:00:02]} 27. Be5 {[%emt 0:
00:04]} Bxe5 {[%emt 0:00:09]} 28. dxe5 {[%emt 0:00:02]} d4 {[%emt 0:00:00]} 29.
Qd3 {[%emt 0:00:04]} b5 {[%emt 0:00:03]} 30. b3 {[%emt 0:00:14]} axb3 {[%emt 0:
00:02]} 31. Qxb3 {[%emt 0:00:02]} d3 {[%emt 0:00:02]} 32. Re4 {[%emt 0:00:05]}
Qd5 {[%emt 0:00:00]} 33. f3 {[%emt 0:00:06]} d2 {[%emt 0:00:01]} 34. Rd1 {
[%emt 0:00:01]} Ra8 {[%emt 0:00:02]} 35. Rxc4 {[%emt 0:00:17]} bxc4 {[%emt 0:
00:02]} 36. Qe3 {[%emt 0:00:00]} Rd8 {[%emt 0:00:01]} 37. Kf2 {[%emt 0:00:02]}
Qa5 {[%emt 0:00:03]} 38. e6 {[%emt 0:00:03]} c3 {[%emt 0:00:04]} 39. e7 {
[%emt 0:00:02]} Re8 {[%emt 0:00:00]} 40. Qe4 {[%emt 0:00:04]} Qc7 {[%emt 0:00:
01]} 41. Qc2 {[%emt 0:00:03]} Rxe7 {[%emt 0:00:01]} 42. Rb1 {[%emt 0:00:00]}
Qc5+ {[%emt 0:00:02]} 43. Kf1 {[%emt 0:00:01]} Qe3 {[%emt 0:00:02]} 44. Qd1 {
[%emt 0:00:03]} Qd3+ {[%emt 0:00:03]} 45. Kg1 {[%emt 0:00:01]} c2 {[%emt 0:00:
01]} 0-1

[Event "GER-ch Blitz 2019"]
[Site "Magdeburg"]
[Date "2019.05.25"]
[Round "12.5"]
[White "Kopylov, Michael"]
[Black "Voege, Tobias"]
[Result "1-0"]
[ECO "D07"]
[WhiteElo "2413"]
[BlackElo "2294"]
[Annotator "NA"]
[PlyCount "61"]
[EventDate "2019.05.25"]
[EventType "tourn"]
[EventCountry "GER"]
[Tiebreak "Number of wins+Number of black wins"]
[SourceTitle "playchess.com"]
[Source "ChessBase"]
[SourceQuality "1"]
[TimeControl "180+2"]

1. d4 {[%emt 0:00:00]} d5 {[%emt 0:00:00]} 2. c4 {[%emt 0:00:00]} Nc6 {[%emt 0:
00:00]} 3. Nc3 {[%emt 0:00:01]} Nf6 {[%emt 0:00:06]} 4. cxd5 {[%emt 0:00:02]}
Nxd5 {[%emt 0:00:01]} 5. Nf3 {[%emt 0:00:01]} Bg4 {[%emt 0:00:05]} 6. e3 {
[%emt 0:00:19]} e5 {[%emt 0:00:09]} 7. Be2 {[%emt 0:00:06]} exd4 {[%emt 0:00:
19]} 8. exd4 {[%emt 0:00:03]} Bb4 {[%emt 0:00:04]} 9. Bd2 {[%emt 0:00:06]} O-O
{[%emt 0:00:07]} 10. O-O {[%emt 0:00:02]} Re8 {[%emt 0:00:06]} 11. h3 {[%emt 0:
00:04]} Bh5 {[%emt 0:00:06]} 12. Bc4 {[%emt 0:00:10]} Bxc3 {[%emt 0:00:25]} 13.
bxc3 {[%emt 0:00:04]} Na5 {[%emt 0:00:04]} 14. Bd3 {[%emt 0:00:15]} Bg6 {
[%emt 0:00:53]} 15. Be2 {[%emt 0:00:11]} Nc6 {[%emt 0:00:13]} 16. Re1 {[%emt 0:
00:06]} a6 {[%emt 0:00:03]} 17. a4 {[%emt 0:00:08]} Qd6 {[%emt 0:00:05]} 18.
Qb3 {[%emt 0:00:05]} b6 {[%emt 0:00:13]} 19. Bf1 {[%emt 0:00:13]} Na5 {[%emt 0:
00:09]} 20. Qa2 {[%emt 0:00:05]} Nf4 {[%emt 0:00:10]} 21. Ne5 {[%emt 0:00:12]}
Nd5 {[%emt 0:00:10]} 22. Nc4 {[%emt 0:00:24]} Nxc4 23. Bxc4 {[%emt 0:00:01]}
Nf4 {[%emt 0:00:10]} 24. Bxa6 {[%emt 0:00:08]} h6 {[%emt 0:00:06]} 25. Bb5 {
[%emt 0:00:01]} Rxe1+ 26. Rxe1 Ra7 {[%emt 0:00:04]} 27. Re5 {[%emt 0:00:21]}
Nd3 28. Bxd3 Bxd3 29. Re8+ Kh7 30. Qxf7 Rxa4 31. Qg8+ 1-0

[Event "GER-ch Blitz 2019"]
[Site "Magdeburg"]
[Date "2019.05.25"]
[Round "12.6"]
[White "Braeuning, Rudolf Wilhelm"]
[Black "Kirchner, Thomas"]
[Result "0-1"]
[ECO "C52"]
[WhiteElo "2285"]
[BlackElo "2311"]
[Annotator "NA"]
[PlyCount "72"]
[EventDate "2019.05.25"]
[EventType "tourn"]
[EventCountry "GER"]
[Tiebreak "Number of wins+Number of black wins"]
[SourceTitle "playchess.com"]
[Source "ChessBase"]
[SourceQuality "1"]
[TimeControl "180+2"]

1. e4 {[%emt 0:00:00]} e5 {[%emt 0:00:00]} 2. Nf3 {[%emt 0:00:01]} Nc6 {
[%emt 0:00:00]} 3. Bc4 {[%emt 0:00:02]} Bc5 {[%emt 0:00:00]} 4. b4 Bxb4 {
[%emt 0:00:00]} 5. c3 {[%emt 0:00:02]} Ba5 {[%emt 0:00:01]} 6. d4 {[%emt 0:00:
02]} d6 {[%emt 0:00:03]} 7. dxe5 {[%emt 0:00:19]} dxe5 {[%emt 0:00:01]} 8.
Qxd8+ {[%emt 0:00:03]} Nxd8 {[%emt 0:00:01]} 9. Nxe5 {[%emt 0:00:05]} Be6 {
[%emt 0:00:01]} 10. O-O {[%emt 0:00:08]} Nf6 {[%emt 0:00:10]} 11. f3 {[%emt 0:
00:28]} Bb6+ {[%emt 0:00:03]} 12. Kh1 {[%emt 0:00:02]} Nd7 {[%emt 0:00:14]} 13.
Bxe6 {[%emt 0:00:10]} Nxe5 {[%emt 0:00:03]} 14. Bd5 {[%emt 0:00:17]} c6 {
[%emt 0:00:04]} 15. Bb3 {[%emt 0:00:01]} Nd3 {[%emt 0:00:02]} 16. g3 {[%emt 0:
00:16]} Ne6 {[%emt 0:00:04]} 17. Nd2 {[%emt 0:00:23]} O-O-O {[%emt 0:00:10]}
18. Nc4 {[%emt 0:00:04]} Bc7 {[%emt 0:00:08]} 19. Be3 {[%emt 0:00:17]} b5 {
[%emt 0:00:21]} 20. Nd2 {[%emt 0:00:10]} Ne5 {[%emt 0:00:20]} 21. Bc2 {[%emt 0:
00:21]} Bb6 {[%emt 0:00:12]} 22. Bxb6 {[%emt 0:00:25]} axb6 {[%emt 0:00:01]}
23. Nb3 {[%emt 0:00:04]} Kb7 {[%emt 0:00:06]} 24. a4 {[%emt 0:00:01]} bxa4 {
[%emt 0:00:14]} 25. Rxa4 {[%emt 0:00:01]} Ra8 {[%emt 0:00:01]} 26. Rfa1 {
[%emt 0:00:00]} Rxa4 {[%emt 0:00:03]} 27. Rxa4 {[%emt 0:00:01]} Nxf3 {[%emt 0:
00:01]} 28. Nd4 {[%emt 0:00:07]} Nfxd4 {[%emt 0:00:17]} 29. cxd4 {[%emt 0:00:
00]} Rd8 {[%emt 0:00:02]} 30. d5 {[%emt 0:00:02]} cxd5 {[%emt 0:00:27]} 31.
exd5 {[%emt 0:00:00]} Nc5 {[%emt 0:00:03]} 32. Rd4 {[%emt 0:00:04]} Rd6 {
[%emt 0:00:03]} 33. Bxh7 {[%emt 0:00:02]} g6 {[%emt 0:00:05]} 34. h4 {[%emt 0:
00:03]} Nd7 {[%emt 0:00:12]} 35. Bg8 {[%emt 0:00:04]} Ne5 {[%emt 0:00:04]} 36.
g4 Kc7 0-1

[Event "GER-ch Blitz 2019"]
[Site "Magdeburg"]
[Date "2019.05.25"]
[Round "12.7"]
[White "Heidrich, Manfred"]
[Black "Heistermann, Till"]
[Result "0-1"]
[ECO "B00"]
[WhiteElo "2351"]
[BlackElo "2181"]
[Annotator "NA"]
[PlyCount "60"]
[EventDate "2019.05.25"]
[EventType "tourn"]
[EventCountry "GER"]
[Tiebreak "Number of wins+Number of black wins"]
[SourceTitle "playchess.com"]
[Source "ChessBase"]
[SourceQuality "1"]
[TimeControl "180+2"]

1. e4 {[%emt 0:00:00]} d6 {[%emt 0:00:00]} 2. d4 {[%emt 0:00:00]} e5 {[%emt 0:
00:00]} 3. dxe5 {[%emt 0:00:03]} dxe5 {[%emt 0:00:00]} 4. Qxd8+ Kxd8 {[%emt 0:
00:01]} 5. Bc4 {[%emt 0:00:05]} f6 {[%emt 0:00:00]} 6. Nc3 {[%emt 0:00:08]} c6
{[%emt 0:00:01]} 7. f4 {[%emt 0:00:03]} Nd7 {[%emt 0:00:03]} 8. Nf3 {[%emt 0:
00:01]} Bd6 {[%emt 0:00:01]} 9. g3 {[%emt 0:00:12]} Kc7 {[%emt 0:00:02]} 10.
Be3 {[%emt 0:00:01]} Nh6 {[%emt 0:00:01]} 11. f5 {[%emt 0:00:12]} Ng4 {[%emt 0:
00:03]} 12. Bg1 {[%emt 0:00:29]} Bc5 {[%emt 0:00:02]} 13. Ke2 {[%emt 0:00:00]}
b5 {[%emt 0:00:01]} 14. Bb3 {[%emt 0:00:03]} a5 {[%emt 0:00:08]} 15. a4 {
[%emt 0:00:01]} b4 {[%emt 0:00:02]} 16. Nd1 {[%emt 0:00:01]} Ba6+ {[%emt 0:00:
00]} 17. Ke1 {[%emt 0:00:28]} Bxg1 {[%emt 0:00:01]} 18. Rxg1 {[%emt 0:00:01]}
Nc5 {[%emt 0:00:01]} 19. h3 {[%emt 0:00:02]} Nh6 {[%emt 0:00:04]} 20. Nf2 {
[%emt 0:00:01]} Rad8 {[%emt 0:00:06]} 21. Rd1 {[%emt 0:00:01]} Rxd1+ {[%emt 0:
00:03]} 22. Kxd1 {[%emt 0:00:01]} Rd8+ 23. Kc1 Ng8 {[%emt 0:00:49]} 24. g4 {
[%emt 0:00:28]} h6 {[%emt 0:00:01]} 25. h4 {[%emt 0:00:00]} Ne7 {[%emt 0:00:02]
} 26. g5 {[%emt 0:00:02]} hxg5 27. hxg5 Kb6 {[%emt 0:00:20]} 28. gxf6 {[%emt 0:
00:07]} gxf6 {[%emt 0:00:01]} 29. Rg7 {[%emt 0:00:01]} Nc8 {[%emt 0:00:05]} 30.
Rf7 {[%emt 0:00:06]} Nd6 0-1